Cogmind - Beta 9.5 @@@ ROGUE MODE // 2020.04.12 @ 22:56:04 Player: Nalzok Result: Destroyed by G-47 Trooper with Particle Gun Performance ------------- Evolutions (2) 1000 Regions Visited (6) 1200 Robots Destroyed (43) 215 Value Destroyed (1514) 1514 Prototype IDs (23) 460 Alien Tech Used (0) 0 Bonus (300) 300 TOTAL SCORE: 4689 Bonus ------- Aligned with FarCom 300 Cogmind --------- Core Integrity 0/550 Matter 107/300 Energy 98/100 System Corruption 0% Temperature Cool (9) Movement Core (50) Location -8/Storage Parts ------- > --- POWER (1) -------- (None) > --- PROPULSION (2) --- (None) > --- UTILITY (6) ------ (None) > --- WEAPON (2) ------- (None) > --- INVENTORY (4) ---- Humpback Ion Cannon Peak State ------------ > --- POWER ------------ Cooled Ion Engine > --- PROPULSION ------- Aluminum Leg Carbon-fiber Leg > --- UTILITY ---------- Disposable Heat Sink Humpback Advanced Visual Processing Unit Advanced Signal Interpreter System Shield > --- WEAPON ----------- Heavy Assault Rifle Improved Light Cannon > --- INVENTORY -------- Improved Ion Engine Deuterium Engine Light Nuclear Core Light Treads Aluminum Leg Disposable Heat Sink Large Storage Unit Humpback Advanced Signal Interpreter Advanced Signal Interpreter Target Analyzer Electrolaser Ion Cannon Improved Light Cannon Improved Light Cannon Improved Light Cannon Improved Light Cannon Rocket Launcher Field Lobotomy Kit [Rating: 29] Favorites ----------- Power Light Ion Engine Engine Light Ion Engine Propulsion Aluminum Leg Treads Light Treads Leg Aluminum Leg Utility Humpback Device Improved Heat Sink Storage Humpback Processor Advanced Signal Interpreter Hackware System Shield Weapon Beam Cannon Energy Gun Medium Laser Energy Cannon Beam Cannon Ballistic Gun Light Assault Rifle Ballistic Cannon Improved Light Cannon Launcher Rocket Launcher Build | -11 -10 -10 -10 -9 -8 -8 ------- Run | Scr Mat Min Exi Min Mat Sto Slots Evolved 4 | . . . . . 4 . Power . | . . . . . . . Propulsion . | . . . . . . . Utility 4 | . . . . . 4 . Weapon . | . . . . . . . Parts Attached 48 | . 6 6 1 . 22 13 Power 7 | . 2 2 . . 3 . Engine 7 | . 2 2 . . 3 . Core . | . . . . . . . Reactor . | . . . . . . . Propulsion 16 | . 3 1 . . 6 6 Treads 5 | . . . . . 3 2 Leg 11 | . 3 1 . . 3 4 Wheel . | . . . . . . . Hover . | . . . . . . . Flight . | . . . . . . . Utility 11 | . 1 1 1 . 7 1 Device 6 | . 1 . . . 4 1 Storage 2 | . . 1 1 . . . Processor 2 | . . . . . 2 . Hackware 1 | . . . . . 1 . Protection . | . . . . . . . Artifact . | . . . . . . . Weapon 14 | . . 2 . . 6 6 Energy Gun 5 | . . 1 . . 4 . Energy Cannon 1 | . . 1 . . . . Ballistic Gun 4 | . . . . . 2 2 Ballistic Cannon 2 | . . . . . . 2 Launcher 2 | . . . . . . 2 Special Weapon . | . . . . . . . Impact Weapon . | . . . . . . . Slashing Weapon . | . . . . . . . Piercing Weapon . | . . . . . . . Special Melee Weapon . | . . . . . . . Unidentified Prototypes 1 | . . . . . 1 . Parts Lost 23 | . . 3 . . 8 12 Power 3 | . . . . . 2 1 Propulsion 6 | . . . . . 1 5 Utility 3 | . . 1 . . . 2 Weapon 11 | . . 2 . . 5 4 Highest Loss Streak 6 | . . 3 . . 6 6 Average Slot Usage (%) 91 | . 95 98 95 85 86 86 Engine 11 | . 14 14 14 14 9 9 Treads 2 | . . . . . 8 5 Leg 20 | . 28 28 28 28 9 11 Device 5 | . 10 . . . 12 8 Storage 16 | . 14 26 24 14 9 8 Processor 6 | . . . . . 12 18 Hackware 3 | . . . . . 8 9 Energy Gun 9 | . . 13 14 14 7 4 Energy Cannon 7 | . . 13 14 14 3 . Ballistic Gun 4 | . 28 . . . 5 5 Naked Turns 4 | . . . . . . 4 Heaviest Build 97 | 11 12 28 88 88 96 97 Greatest Support 40 | 20 20 20 20 20 40 40 Greatest Overweight (x) 4 | . . 1 4 4 4 4 Average Overweight (x) 1 | . . . 1 4 2 2 Largest Inventory Capacity 24 | 6 6 12 24 24 24 24 Average Capacity 18 | 6 6 11 15 24 24 23 Most Carried 24 | 5 6 12 17 18 24 24 Average Carried 15 | 2 4 7 12 17 22 21 Final Capacity 24 | 6 6 12 24 24 24 4 Final Carried 24 | 2 6 12 17 18 24 3 Class Distribution -------------------- 56% | Hauler-Mutant 43% | Mutant Dominant Class ---------------- Mutant | -10/Materials Mutant | -10/Mines Mutant | -10/Exiles Hauler-Mutant | -9/Mines Hauler-Mutant | -8/Materials Hauler-Mutant | -8/Storage Resources | -11 -10 -10 -10 -9 -8 -8 ----------- Run | Scr Mat Min Exi Min Mat Sto Matter Collected 780 | 131 169 63 . 10 252 155 Remotely . | . . . . . . . Salvage Created 1629 | . 169 196 . . 526 738 Parts 79 | . 8 14 . . 24 33 Haulers Intercepted 2 | . . . . . . 2 Recyclers Shooed 1 | . . . . . 1 . Parts Field Recycled . | . . . . . . . Retrieved Matter . | . . . . . . . Parts Self-Destructed . | . . . . . . . Prevented . | . . . . . . . Kills | -11 -10 -10 -10 -9 -8 -8 ------- Run | Scr Mat Min Exi Min Mat Sto Combat Hostiles Destroyed 36 | . 4 6 . . 8 18 Guns 25 | . 4 5 . . 7 9 Cannons 4 | . . 1 . . 1 2 AOE 7 | . . . . . . 7 Classes Destroyed 8 | . 1 3 . . 2 2 Tunneler 1 | . . 1 . . . . Hauler 2 | . . . . . . 2 Recycler 3 | . . 1 . . 1 1 Operator 1 | . . . . . . 1 Swarmer 8 | . . 6 . . . 2 Grunt 21 | . 4 . . . 3 14 Sentry 6 | . . . . . 4 2 Hunter 1 | . . . . . 1 . Best Kill Streak 11 | . 4 3 . . 4 11 Combat Bots Only 8 | . 4 3 . . 4 8 Max Kills in Single Turn 4 | . 1 2 . . 1 4 Gunslinging . | . . . . . . . Exploded 2 | . . . . . . 2 Melee . | . . . . . . . Uniques/NPCs Destroyed . | . . . . . . . Combat | -11 -10 -10 -10 -9 -8 -8 -------- Run | Scr Mat Min Exi Min Mat Sto Damage Taken 3249 | . 387 298 . . 900 1664 Core 655 | . 53 46 . . 170 386 Absorbed by Shields 19 | . . . . . 19 . Core Remaining (%) 80 | 100 . . . 60 . . Volleys Fired 152 | . 20 27 . 1 39 65 Largest 2 | . 2 2 . 2 2 2 Hottest 112 | . 40 110 . 110 112 112 Shots Fired 263 | . 40 43 . 2 67 111 Gun 206 | . 40 28 . 1 56 81 Cannon 50 | . . 15 . 1 11 23 Launcher 7 | . . . . . . 7 Special . | . . . . . . . Kinetic 138 | . 40 13 . . 31 54 Thermal 118 | . . 30 . 2 36 50 Explosive 7 | . . . . . . 7 Electromagnetic . | . . . . . . . Robot Hit Streak 22 | . 18 7 . . 16 22 Robot Miss Streak 4 | . 1 4 . . 2 3 Penetration Max . | . . . . . . . Secondary Targets 1 | . 1 . . . . . Max Gunslinging Chain 1 | . 1 . . . . . Shots Hit Robots 187 | . 33 22 . . 53 79 Core Hits 97 | . 12 10 . . 21 54 Critical Hits . | . . . . . . . Critical Kills . | . . . . . . . Critical Parts Destroyed . | . . . . . . . Melee Attacks . | . . . . . . . Impact . | . . . . . . . Slashing . | . . . . . . . Piercing . | . . . . . . . Sneak Attacks . | . . . . . . . Combat Hostiles . | . . . . . . . Follow-up Attacks . | . . . . . . . Damage Inflicted 3374 | . 263 268 . . 619 2224 Guns 1751 | . 263 164 . . 478 846 Cannons 517 | . . 104 . . 141 272 Explosions 1105 | . . . . . . 1105 Melee . | . . . . . . . Ramming 1 | . . . . . . 1 Kinetic 1186 | . 263 63 . . 235 625 Thermal 1082 | . . 205 . . 384 493 Explosive 1105 | . . . . . . 1105 Electromagnetic . | . . . . . . . Impact . | . . . . . . . Slashing . | . . . . . . . Piercing . | . . . . . . . Highest Corruption . | . . . . . . . Average Corruption . | . . . . . . . Corruption Purged . | . . . . . . . Overload Shots . | . . . . . . . Overflow Damage 45 | . . . . . . 45 Projectiles 28 | . . . . . . 28 Explosions 17 | . . . . . . 17 Melee . | . . . . . . . Knockbacks 1 | . . . . . . 1 Impact . | . . . . . . . Kinetic 1 | . . . . . . 1 Secondary . | . . . . . . . Self-Inflicted Damage 34 | . . . . . . 34 Shots 1 | . . . . . . 1 Rammed 1 | . . . . . . 1 Targets Rammed 2 | . . . . . . 2 Kicked 1 | . . . . . . 1 Crushed . | . . . . . . . Highest Temperature 240 | . 26 240 . 48 7 199 Average Temperature 63 | . 10 70 . 27 3 89 Received Heat Transfer 1458 | . 192 . . . 456 810 Siege Activations . | . . . . . . . Robots Corrupted . | . . . . . . . Combat Hostiles . | . . . . . . . Parts Fried . | . . . . . . . Impact Corruptions . | . . . . . . . Robots Melted . | . . . . . . . Combat Hostiles . | . . . . . . . Parts Melted 4 | . . 1 . . . 3 Heat Transferred 2738 | . . 518 . . 962 1258 Parts Sabotaged . | . . . . . . . Parts Stolen . | . . . . . . . Parts Stripped . | . . . . . . . Power Chain Reactions . | . . . . . . . Missiles Intercepted . | . . . . . . . Alert | -11 -10 -10 -10 -9 -8 -8 ------- Run | Scr Mat Min Exi Min Mat Sto Peak Influence 324 | . 100 121 . 15 120 324 Average Influence 53 | . 56 60 . . 35 112 Maximum Alert Level 1 | . . . . . . 1 Low Security (%) 96 | 100 100 100 . 100 100 80 Level 1 3 | . . . . . . 19 Level 2 . | . . . . . . . Level 3 . | . . . . . . . Level 4 . | . . . . . . . Level 5 . | . . . . . . . High Security . | . . . . . . . Max Security . | . . . . . . . Squads Dispatched 10 | . 1 . . . . 9 Investigation 3 | . . . . . . 3 Extermination . | . . . . . . . Reinforcement 6 | . 1 . . . . 5 Assault . | . . . . . . . Garrison 1 | . . . . . . 1 Intercept . | . . . . . . . Construction Impeded . | . . . . . . . Haulers Reinforced . | . . . . . . . Stealth | -11 -10 -10 -10 -9 -8 -8 --------- Run | Scr Mat Min Exi Min Mat Sto Distress Signals 5 | . 1 . . 1 . 3 Communications Jammed . | . . . . . . . Distress Signals . | . . . . . . . Times Spotted 70 | . 7 6 . 9 11 37 Peak Tracking Total 9 | . 4 3 . 8 4 9 Tactical Retreats 2 | . . . . 1 . 1 Traps | -11 -10 -10 -10 -9 -8 -8 ------- Run | Scr Mat Min Exi Min Mat Sto Traps Triggered 2 | . 1 . . . . 1 Indirectly . | . . . . . . . Trap Hack Attempts . | . . . . . . . Triggered . | . . . . . . . Disarmed . | . . . . . . . Reprogrammed . | . . . . . . . Reused . | . . . . . . . Traps Extracted . | . . . . . . . Installed . | . . . . . . . Triggered . | . . . . . . . Machines | -11 -10 -10 -10 -9 -8 -8 ---------- Run | Scr Mat Min Exi Min Mat Sto Machines Disabled 5 | . . 2 . 1 1 1 Max in Single Turn 1 | . . 1 . 1 1 1 Machines Sabotaged 1 | . . . . . . 1 Garrisons Compromised . | . . . . . . . Overloaded Fab Kills . | . . . . . . . Fab Network Shutdowns . | . . . . . . . Hacking | -11 -10 -10 -10 -9 -8 -8 --------- Run | Scr Mat Min Exi Min Mat Sto Machines Accessed 11 | . 1 . 2 1 4 3 Terminals 8 | . 1 . . 1 4 2 Fabricators . | . . . . . . . Repair Stations . | . . . . . . . Recycling Units . | . . . . . . . Scanalyzers . | . . . . . . . Garrison Access 1 | . . . . . . 1 Total Hacks 21 | . 1 . 2 2 12 4 Successful 10 | . . . 2 . 5 3 Failed 11 | . 1 . . 2 7 1 Catastrophic 4 | . 1 . . 1 2 . Database Lockouts . | . . . . . . . Manual 14 | . 1 . 1 2 8 2 Terminals 18 | . 1 . . 2 12 3 Fabricators . | . . . . . . . Repair Stations . | . . . . . . . Recycling Units . | . . . . . . . Scanalyzers . | . . . . . . . Garrison Access 1 | . . . . . . 1 Terminal Hacks 5 | . . . 2 . 2 1 Record 1 | . . . 1 . . . Open Door 1 | . . . . . . 1 Unreport Threat 2 | . . . . . 2 . EX-Prototype ID Bank 1 | . . . 1 . . . Fabricator Hacks . | . . . . . . . Repair Station Hacks . | . . . . . . . Recycling Unit Hacks . | . . . . . . . Scanalyzer . | . . . . . . . Garrison Access Hacks . | . . . . . . . Unauthorized Hacks 13 | . . . . . 9 4 Terminals 4 | . . . . . 3 1 Track 1 | . . . . . 1 . Botnet 1 | . . . . . 1 . Operators 1 | . . . . . 1 . Sabotage 1 | . . . . . . 1 Fabricators . | . . . . . . . Repair Stations . | . . . . . . . Recycling Units . | . . . . . . . Scanalyzers . | . . . . . . . Garrison Access 1 | . . . . . . 1 Eject 1 | . . . . . . 1 Data Cores Recovered . | . . . . . . . Used . | . . . . . . . Hacking Detections 6 | . 1 . . 1 3 1 Full Trace Events . | . . . . . . . Feedback Events . | . . . . . . . Feedback Blocked . | . . . . . . . Robot Schematics Acquired . | . . . . . . . Robots Built . | . . . . . . . Matter . | . . . . . . . Time . | . . . . . . . Total Robot Build Rating . | . . . . . . . Part Schematics Acquired . | . . . . . . . Parts Built . | . . . . . . . Matter . | . . . . . . . Time . | . . . . . . . Total Part Build Rating . | . . . . . . . Parts Repaired . | . . . . . . . Time . | . . . . . . . Parts Recycled . | . . . . . . . Recycled Matter . | . . . . . . . Retrieved Matter . | . . . . . . . Retrieved Components . | . . . . . . . Parts Scanalyzed . | . . . . . . . Part Schematics Acquired . | . . . . . . . Parts Damaged . | . . . . . . . Bothacking | -11 -10 -10 -10 -9 -8 -8 ------------ Run | Scr Mat Min Exi Min Mat Sto Used RIF Installer . | . . . . . . . Robots Hacked . | . . . . . . . Non-combat . | . . . . . . . Combat . | . . . . . . . Robot Hacks Applied . | . . . . . . . Relay Couplers Released 3 | . . . . . . 3 Ejected 3 | . . . . . . 3 Robots Rewired . | . . . . . . . Allies Hacked . | . . . . . . . Hacks Repelled . | . . . . . . . Allies | -11 -10 -10 -10 -9 -8 -8 -------- Run | Scr Mat Min Exi Min Mat Sto Total Allies 5 | . . 5 . . . . Largest Group 5 | . . 5 5 3 . . Highest-Rated Group 81 | . . 81 81 40 . . Highest-Rated Ally 31 | . . 31 31 16 . . Total Orders 3 | . . . . 1 . 2 STAY 1 | . . . . . . 1 GOTO 1 | . . . . 1 . . EXPLORE 1 | . . . . . . 1 Ally Attacks 8 | . . 1 . 7 . . Total Damage 103 | . . 21 . 82 . . Kills 1 | . . . . 1 . . Allies Corrupted 2 | . . . . . . 2 Allies Melted . | . . . . . . . Intel | -11 -10 -10 -10 -9 -8 -8 ------- Run | Scr Mat Min Exi Min Mat Sto Robot Analysis Total . | . . . . . . . Derelict Logs Recovered 3 | . . 1 . 2 . . Drone Launches 17 | . . . 1 . . 16 Drone Recoveries . | . . . . . . . Exploration | -11 -10 -10 -10 -9 -8 -8 ------------- Run | Scr Mat Min Exi Min Mat Sto Turns Passed 3868 | 5 328 983 466 489 965 632 Spaces Moved 1862 | 3 204 603 268 203 382 199 Core 12 | . . . . . . 12 Treads 235 | . . . . . 186 49 Legs 1615 | 3 204 603 268 203 196 138 Wheels . | . . . . . . . Hover . | . . . . . . . Flight . | . . . . . . . Fastest Speed 50 | 120 120 120 150 240 180 50 Average Speed 174 | 120 120 148 165 240 204 201 Slowest Speed 240 | 120 120 150 240 240 240 240 Overloaded Moves . | . . . . . . . Propulsion Burnouts . | . . . . . . . Robots Hopped . | . . . . . . . Cave-ins Triggered . | . . . . . . . Exploration Rate (%) 45 | 2 30 98 66 55 20 49 Regions Visited 6 Branch Regions 4 Pre-discovered Areas 2 | . . . 1 1 . . Known Exits Taken 1 | . . . . . 1 . Unknown Exits Taken 5 | 1 1 1 1 1 . . Scrap Searched 5 | . . 4 . 1 . . Spaces Dug . | . . . . . . . Terrain Destroyed 48 | . . . . . . 48 Melee . | . . . . . . . Projectile . | . . . . . . . AOE 48 | . . . . . . 48 Actions | -11 -10 -10 -10 -9 -8 -8 --------- Run | Scr Mat Min Exi Min Mat Sto Total 2236 | 6 255 652 293 204 509 317 Wait 81 | . 19 9 8 . 19 26 Move 1855 | 2 203 601 267 202 381 199 Hop . | . . . . . . . Pick Up 53 | . 3 7 13 1 26 3 Fast Attach 13 | . 1 1 1 . 9 1 Attach 16 | . . 2 . . 7 7 Detach . | . . . . . . . Swap 20 | . 5 3 . . 7 5 Drop 35 | 4 4 2 3 . 21 1 Fire 152 | . 20 27 . 1 39 65 Melee . | . . . . . . . Ram . | . . . . . . . Kick 2 | . . . . . . 2 Crush . | . . . . . . . Escape Stasis . | . . . . . . . Rewire . | . . . . . . . Trap . | . . . . . . . Miscellaneous 9 | . . . 1 . . 8 Route ------- -11/Scrapyard -10/Materials -10/Mines (discovered 3 exits: [*Mat x2] / *Exi) -10/Exiles (discovered 2 exits: *Min x2) -9/Mines -8/Materials -8/Storage History --------- Turn | Location | Event 3 | -11/Scrapyard | Discovered new exit (range 3) 6 | -11/Scrapyard | Entered Materials 264 | -10/Materials | Discovered new exit (range 12) 316 | -10/Materials | Build established: Mutant 334 | -10/Materials | Entered Mines 387 | -10/Mines | Lost 3 parts (1u2w) 619 | -10/Mines | Discovered new exit (range 14) 1007 | -10/Mines | Discovered new exit (range 6) 1078 | -10/Mines | Assisted by bots powering up and referring to "LRC-V3" 1180 | -10/Mines | Learned Materials terminal intel 1303 | -10/Mines | Deemed a non-threat by the Exiles lab entrance 1305 | -10/Mines | Discovered new exit (range 5) 1317 | -10/Mines | Entered Exiles 1317 | -10/Exiles | Accompanied by 5 allies 1337 | -10/Exiles | Discovered new exit (range 15) 1347 | -10/Exiles | Led the pair of lost Derelicts to a safe place 1358 | -10/Exiles | Met 8R-AWN 1380 | -10/Exiles | Met EX-HEX 1421 | -10/Exiles | Met EX-BIN 1442 | -10/Exiles | Aligned with FarCom system 1443 | -10/Exiles | Given EX-Vault access code 1478 | -10/Exiles | Opened EX-Vault 1496 | -10/Exiles | Found Field Lobotomy Kit 1528 | -10/Exiles | Warned to stay clear of 0b10 Research branches 1575 | -10/Exiles | Met EX-DEC 1584 | -10/Exiles | Learned location of Zion (-7) 1742 | -10/Exiles | Discovered new exit (range 15) 1783 | -10/Exiles | Left Exiles lab with Field Lobotomy Kit 1783 | -10/Exiles | Entered Mines 1783 | -9/Mines | Accompanied by 4 allies 1916 | -9/Mines | Assembled infested the area 1960 | -9/Mines | Build established: Hauler-Mutant 2052 | -9/Mines | Received a Rocket Launcher from a helpful Derelict 2162 | -9/Mines | Discovered new exit (range 10) 2231 | -9/Mines | Learned location of 1 exit from Lower Caves 2272 | -9/Mines | Entered Materials 2272 | -8/Materials | Evolved 4 slots: Utility x4 2273 | -8/Materials | Loaded intel: 12 terminal locations 2676 | -8/Materials | Lost 6 parts (1p1n4w) 2982 | -8/Materials | Discovered new exit (range 10) 3041 | -8/Materials | Identified exit to Storage 3237 | -8/Materials | Entered Storage 3452 | -8/Storage | Destroyed 7 combat bots 3460 | -8/Storage | Lost 4 parts (2n2w) 3612 | -8/Storage | Core integrity fell below 50% 3784 | -8/Storage | Garrison activated, responded to threat 3831 | -8/Storage | Destroyed 8 combat bots 3861 | -8/Storage | Core integrity fell below 20% 3865 | -8/Storage | Released all parts (5) 3869 | -8/Storage | Destroyed by G-47 Trooper with Particle Gun Last Messages --------------- 03861_ U-05 Engineer builds a Wall. 03861_ K-01 Serf collects debris. 03864_ Cld. Ion Engine destroyed. 03865_ Released Disposable Heat Sink. 03865_ Released System Shield. 03865_ Released Adv. Signal Interpreter. 03865_ Released Adv. Visual Processing Unit. 03865_ Released Imp. Light Cannon. 03865_ K-01 Serf collects debris. 03865_ U-05 Engineer lays Concrete. 03866_ Connecting with Terminal... >>Force(Sabotage) SYSTEM_VULNERABLE[Compression Vault] NETWORK_OVERLOAD COORDINATES_RETRIEVED 03866_ ALERT: Suspicious activity at Terminal S010. Dispatching Investigation squad. 03866_ Compression Vault explodes. 03866_ R-06 Scavenger destroyed. 03869_ K-01 Serf collects debris. Map ----- +----------------------------------------------------+ | ????????????????????????????????????? | | ????????????????????????????????????? | | ????????????????????????????????????? | | ????????????????????????????????????? | | ????????????????? ??????????????????? | | ??????????????###+##????????????????? | | ??????????????# ????????????????? | | ??????????????# ????????????????? | | ??????????????+ ????????????????? | | ??????????????# ????????????????? | | ??????????????? ?###????????????? | | ???????????????## # ## ##???????????? | | ???????????????##%#% # ######??????? | | ???????????????## ###% # ######## | | ???????????????## =!* w | | ??????????????## != * | | ?????#####????# [%!%%] | | ?????#%! ????# *][!#] ######### | | ?????# / ?#####*!!### ###???????? | | ?????# ?+^^g!=%|# #"""#????????? | | ?????# #^^g=g==####"T"###??????? | | ?????# # """!Y# #??????? | | ?????# ! /+ "G!! + """ #??????? | | ??????#+##### """!]# """ #??????? | | ??????# ##### g!g# """ #?????? | | ??????+ @ g +?? ##?????? | | ??????# #######"T"###???" #??????? | | ??????????????#"""#?????" #??????? | | ??????????????#####?????? #??????? | | ????????????????????????? #??????? | | ?????????????????????????###????????? | | ?????????????g??????????????????????? | | ??????????????g???g?????????????????? | | ????????????????????????????????????? | | ????????????????????????????????????? | | ????????????????????????????????????? | | ????????????????????????????????????? | | ????????????????????????????????????? | | ????????????????????????????????????? | | ????????????????????????????????????? | | ????????????????????????????????????? | | ????????????????????????????????????? | | ????????????????????????????????????? | | ????????????????????????????????????? | | ?????????????Y??????????????????????? | | ????????????????????????????????????? | | | | | | | | | +----------------------------------------------------+ Best States ------------- Heat Dissipation 45 Coolant Potential 50 Energy Generation 14 Energy Capacity 280 Matter Stores 300 Matter Capacity 300 Sight Range 20 Robot Scan Range 10 Terrain Scan Density 10 Additional Mass Support 6 Evasion (%) 40 Recoil Reduction 2 Defensive Hacking 10 Item Schematics ----------------- None Robot Schematics ------------------ None Fabricated ------------ Nothing Alien Tech Used ----------------- None Achievements -------------- None Challenges ------------ None Game ------ Seed ParticleIonMinigun Manual? 0 Play Time 00:27:04 Cumulative 247.0 hours Start 2020.04.12 @ 12:44:48 End 2020.04.12 @ 22:56:04 Sessions 5 Manual Loads 0 Difficulty Rogue Special Mode None Game No. 382 Rogue 381 Adventurer 0 Explorer 1 Win Type - Total 1 Types 1/0/0/0/0/0/0 Lore% 65 Gallery% 79 Achievement% 54 Wizard Run 0 Options --------- ASCII 1 Keyboard 1 Movement Vi Keybinds 0 Fullscreen 2 Font 14/Cog Map View 72x52 Tactical HUD 1 Map Filters NONE Filters LOW_CONTRAST(13,24,33) Steam 0 RUN: 16dd704d-f32f-41cd-b93c-d01acb85039f